fUSD/lending_fUSD_20241216
["ID","MTS","AMOUNT","RATE_DAILY","PERIOD"]
[345590901,1734372645345,-174.18,0.00024998,4]
[345590902,1734372645354,-267.25,0.00024998,4]
[345590903,1734372645364,-704.96,0.00024998,4]
[345590904,1734372645374,-647.24,0.00024998,4]
[345590905,1734372645384,-500.0,0.00024998,4]
[345590906,1734372645394,-300.0,0.00024999,10]
[345590907,1734372645404,-300.0,0.00024999,10]
[345590908,1734372645418,-2000.0,0.00024999,2]
[345590909,1734372645428,-39031.64,0.00024999,2]
[345590911,1734372645437,-613.64,0.00024999,4]
[345590912,1734372645447,-613.64,0.00024999,4]
[345590914,1734372645457,-613.64,0.00024999,4]
[345590916,1734372645466,-613.64,0.00024999,4]
[345590918,1734372645475,-613.64,0.00024999,4]
[345590920,1734372645484,-613.64,0.00024999,4]
[345590922,1734372645493,-613.64,0.00024999,4]
[345590924,1734372645502,-613.64,0.00024999,4]
[345590926,1734372645512,-613.64,0.00024999,4]
[345590928,1734372645521,-613.64,0.00024999,4]
[345590930,1734372645530,-613.64,0.00024999,4]
[345590932,1734372645540,-613.64,0.00024999,4]
[345590934,1734372645549,-613.64,0.00024999,4]
[345590936,1734372645558,-613.64,0.00024999,4]
[345590938,1734372645567,-613.64,0.00024999,4]
[345590940,1734372645576,-613.64,0.00024999,4]
[345590942,1734372645585,-613.64,0.00024999,4]
[345590944,1734372645594,-613.64,0.00024999,4]
[345590945,1734372645603,-613.64,0.00024999,4]
[345590948,1734372645613,-613.64,0.00024999,4]
[345590950,1734372645623,-613.68,0.00024999,4]
[345590952,1734372645632,-500.0,0.00024999,4]
[345590954,1734372645641,-510.89448274,0.00024999,4]
[345590956,1734372645650,-500.0,0.00024999,4]
[345590957,1734372645663,-846.65,0.00024999,2]
[345590959,1734372645673,-230.38,0.00024999,4]
[345590961,1734372645682,-1000.0,0.00024999,2]
[345590963,1734372645693,-2000.0,0.00024999,2]
[345590965,1734372645702,-500.0,0.00024999,4]
[345590967,1734372645712,-500.0,0.00024999,4]
[345590970,1734372645722,-500.0,0.00024999,4]
[345590973,1734372645731,-500.0,0.00024999,4]
[345590977,1734372645740,-500.0,0.00024999,4]
[345590979,1734372645750,-500.0,0.00024999,4]
[345590981,1734372645759,-459.68,0.00024999,4]
[345590983,1734372645769,-500.0,0.00024999,4]
[345590985,1734372645778,-339.75603016,0.00024999,4]
[345590987,1734372645787,-500.0,0.00024999,4]
[345590989,1734372645797,-500.0,0.00024999,4]
[345590991,1734372645806,-500.0,0.00024999,4]
[345590993,1734372645815,-500.0,0.00024999,4]
[345590995,1734372645825,-500.0,0.00024999,4]
[345590997,1734372645834,-500.0,0.00024999,4]
[345590999,1734372645843,-154.02,0.00024999,4]
[345591001,1734372645853,-500.0,0.00024999,4]
[345591003,1734372645862,-500.0,0.00024999,4]
[345591005,1734372645871,-2957.99,0.00024999,4]
[345591007,1734372645880,-457.34,0.00024999,4]
[345591009,1734372645890,-2957.99,0.00024999,4]
[345591011,1734372645900,-2957.99,0.00024999,4]
[345591013,1734372645915,-2957.99,0.00024999,4]
[345591015,1734372645924,-2957.99,0.00024999,4]
[345591017,1734372645933,-2957.99,0.00024999,4]
[345591019,1734372645943,-2957.99,0.00024999,4]
[345591021,1734372645953,-2957.99,0.00024999,4]
[345591023,1734372645962,-2957.99,0.00024999,4]
[345591025,1734372645972,-2957.99,0.00024999,4]
[345591027,1734372645981,-2957.99,0.00024999,4]
[345591029,1734372645990,-2957.99,0.00024999,4]
[345591030,1734372646000,-2957.99,0.00024999,4]
[345591033,1734372646010,-2957.99,0.00024999,4]
[345591034,1734372646020,-2957.99,0.00024999,4]
[345591037,1734372646030,-2957.99,0.00024999,4]
[345591038,1734372646040,-2957.99,0.00024999,4]
[345591040,1734372646050,-2957.99,0.00024999,4]
[345591042,1734372646060,-2957.99,0.00024999,4]
[345591044,1734372646070,-2957.99,0.00024999,4]
[345591046,1734372646079,-2958.08,0.00024999,4]
[345591048,1734372646089,-500.0,0.00024999,4]
[345591050,1734372646098,-500.0,0.00024999,4]
[345591052,1734372646107,-500.0,0.00024999,4]
[345591054,1734372646117,-500.0,0.00024999,4]
[345591056,1734372646127,-500.0,0.00024999,4]
[345591058,1734372646136,-500.0,0.00024999,4]
[345591060,1734372646146,-500.0,0.00024999,4]
[345591062,1734372646158,-500.0,0.00024999,4]
[345591064,1734372646172,-500.0,0.00024999,4]
[345591066,1734372646181,-500.0,0.00024999,4]
[345591068,1734372646191,-500.0,0.00024999,4]
[345591070,1734372646201,-500.0,0.00024999,4]
[345591072,1734372646210,-500.0,0.00024999,4]
[345591074,1734372646220,-500.0,0.00024999,4]
[345591075,1734372646229,-500.0,0.00024999,4]
[345591078,1734372646240,-500.0,0.00024999,4]
[345591080,1734372646250,-383.47999998,0.00024999,4]
[345591081,1734372646259,-500.0,0.00024999,4]
[345591083,1734372646269,-174.14417844,0.00024999,4]
[345591085,1734372646278,-1000.0,0.00024999,2]
[345591087,1734372646287,-1000.0,0.00024999,2]
[345591089,1734372646297,-500.0,0.00024999,4]
[345591091,1734372646306,-1000.0,0.00024999,2]
[345591093,1734372646315,-500.0,0.00024999,4]
[345591094,1734372646325,-500.0,0.00024999,4]
[345591095,1734372646335,-1000.0,0.00024999,2]
[345591096,1734372646344,-500.0,0.00024999,4]
[345591097,1734372646353,-500.0,0.00024999,4]
[345591098,1734372646363,-466.12858377,0.00024999,4]
[345591099,1734372646372,-1000.0,0.00024999,2]
[345591100,1734372646382,-500.0,0.00024999,4]
[345591101,1734372646391,-1000.0,0.00024999,2]
[345591102,1734372646401,-500.0,0.00024999,4]
[345591103,1734372646420,-1000.0,0.00024999,2]
[345591104,1734372646430,-500.0,0.00024999,4]
[345591105,1734372646439,-1000.0,0.00024999,2]
[345591106,1734372646449,-458.25,0.00024999,4]
[345591107,1734372646461,-1000.0,0.00024999,2]
[345591108,1734372646470,-1000.0,0.00024999,2]
[345591109,1734372646481,-1000.0,0.00024999,2]
[345591110,1734372646490,-309.09792533,0.00024999,2]
[345591111,1734372646499,-500.0,0.00024999,4]
[345591112,1734372646509,-500.0,0.00024999,4]
[345591113,1734372646518,-500.0,0.00024999,4]
[345591114,1734372646527,-500.0,0.00024999,4]
[345591115,1734372646537,-500.0,0.00024999,4]
[345591116,1734372646546,-500.0,0.00024999,4]
[345591118,1734372646556,-500.0,0.00024999,4]
[345591120,1734372646566,-500.0,0.00024999,4]
[345591122,1734372646575,-500.0,0.00024999,4]
[345591123,1734372646584,-500.0,0.00024999,4]
[345591124,1734372646594,-474.95,0.00024999,4]
[345591126,1734372646603,-500.0,0.00024999,4]
[345591128,1734372646613,-746.61099274,0.00024999,4]
[345591129,1734372646622,-500.0,0.00024999,4]
[345591131,1734372646631,-500.0,0.00024999,4]
[345591133,1734372646641,-500.0,0.00024999,4]
[345591135,1734372646651,-181.71297436,0.00024999,4]
[345591137,1734372646660,-217.3,0.00024999,4]
[345591139,1734372646670,-500.0,0.00024999,4]
[345591141,1734372646681,-500.0,0.00024999,4]
[345591143,1734372646690,-500.0,0.00024999,4]
[345591145,1734372646699,-500.0,0.00024999,4]
[345591147,1734372646712,-500.0,0.00024999,4]
[345591149,1734372646721,-500.0,0.00024999,4]
[345591151,1734372646731,-500.0,0.00024999,4]
[345591152,1734372646740,-500.0,0.00024999,4]
[345591153,1734372646749,-500.0,0.00024999,4]
[345591155,1734372646758,-162.32,0.00024999,4]
[345591157,1734372646768,-500.0,0.00024999,4]
[345591159,1734372646777,-500.0,0.00024999,4]
[345591161,1734372646786,-500.0,0.00024999,4]
[345591163,1734372646795,-500.0,0.00024999,4]
[345591165,1734372646805,-500.0,0.00024999,4]
[345591167,1734372646815,-156.05,0.00024999,4]
[345591169,1734372646824,-2631.42,0.00024999,4]
[345591171,1734372646951,-2631.42,0.00024999,4]
[345591172,1734372646962,-2631.42,0.00024999,4]
[345591173,1734372646971,-2631.42,0.00024999,4]
[345591174,1734372646981,-2631.42,0.00024999,4]
[345591175,1734372646990,-2631.42,0.00024999,4]
[345591176,1734372646999,-2631.42,0.00024999,4]
[345591177,1734372647009,-2631.42,0.00024999,4]
[345591178,1734372647018,-2631.42,0.00024999,4]
[345591179,1734372647027,-2631.42,0.00024999,4]
[345591181,1734372647036,-2631.42,0.00024999,4]
[345591183,1734372647045,-2631.42,0.00024999,4]
[345591185,1734372647054,-2631.42,0.00024999,4]
[345591187,1734372647064,-2631.42,0.00024999,4]
[345591189,1734372647073,-2631.42,0.00024999,4]
[345591191,1734372647083,-2631.42,0.00024999,4]
[345591193,1734372647092,-2631.42,0.00024999,4]
[345591195,1734372647102,-2631.42,0.00024999,4]
[345591197,1734372647111,-2631.42,0.00024999,4]
[345591199,1734372647121,-2631.51974186,0.00024999,4]
[345591201,1734372647130,-500.0,0.00024999,4]
[345591202,1734372647140,-500.0,0.00024999,4]
[345591204,1734372647149,-500.0,0.00024999,4]
[345591206,1734372647160,-500.0,0.00024999,4]
[345591208,1734372647172,-500.0,0.00024999,4]
[345591210,1734372647181,-500.0,0.00024999,4]
[345591212,1734372647191,-500.0,0.00024999,4]
[345591214,1734372647202,-500.0,0.00024999,4]
[345591216,1734372647212,-500.0,0.00024999,4]
[345591218,1734372647222,-500.0,0.00024999,4]
[345591219,1734372647232,-341.52,0.00024999,4]
[345591220,1734372647242,-500.0,0.00024999,4]
[345591221,1734372647253,-500.0,0.00024999,4]
[345591222,1734372647263,-500.0,0.00024999,4]
[345591223,1734372647273,-500.0,0.00024999,4]
[345591224,1734372647283,-500.0,0.00024999,4]
[345591225,1734372647293,-500.0,0.00024999,4]
[345591226,1734372647303,-500.0,0.00024999,4]
[345591227,1734372647312,-500.0,0.00024999,4]
[345591228,1734372647321,-500.0,0.00024999,4]
[345591229,1734372647330,-500.0,0.00024999,4]
[345591230,1734372647341,-500.0,0.00024999,4]
[345591231,1734372647350,-500.0,0.00024999,4]
[345591232,1734372647359,-500.0,0.00024999,4]
[345591233,1734372647369,-500.0,0.00024999,4]
[345591234,1734372647379,-500.0,0.00024999,4]
[345591235,1734372647388,-500.0,0.00024999,4]
[345591236,1734372647397,-500.0,0.00024999,4]
[345591238,1734372647410,-572.67,0.00024999,4]
[345591240,1734372647420,-385.52,0.00024999,4]
[345591242,1734372647430,-704.96,0.00024999,4]
[345591244,1734372647439,-704.96,0.00024999,4]
[345591246,1734372647448,-704.96,0.00024999,4]
[345591248,1734372647461,-704.96,0.00024999,4]
[345591250,1734372647470,-704.96,0.00024999,4]
[345591252,1734372647480,-704.96,0.00024999,4]
[345591254,1734372647489,-704.96,0.00024999,4]
[345591256,1734372647500,-704.96,0.00024999,4]
[345591258,1734372647510,-704.96,0.00024999,4]
[345591260,1734372647519,-704.96,0.00024999,4]
[345591262,1734372647528,-704.96,0.00024999,4]
[345591264,1734372647538,-704.96,0.00024999,4]
[345591265,1734372647547,-704.96,0.00024999,4]
[345591267,1734372647557,-704.96,0.00024999,4]
[345591268,1734372647566,-704.96,0.00024999,4]
[345591269,1734372647575,-704.96,0.00024999,4]
[345591270,1734372647585,-704.96,0.00024999,4]
[345591271,1734372647594,-704.96,0.00024999,4]
[345591272,1734372647603,-704.96,0.00024999,4]
[345591273,1734372647612,-705.17,0.00024999,4]
[345591274,1734372647622,-890.0,0.00024999,2]
[345591275,1734372647631,-647.24,0.00024999,4]
[345591276,1734372647640,-647.24,0.00024999,4]
[345591277,1734372647650,-647.24,0.00024999,4]
[345591278,1734372647663,-647.24,0.00024999,4]
[345591279,1734372647672,-647.24,0.00024999,4]
[345591280,1734372647681,-647.24,0.00024999,4]
[345591281,1734372647691,-647.24,0.00024999,4]
[345591282,1734372647700,-647.24,0.00024999,4]
[345591283,1734372647709,-647.24,0.00024999,4]
[345591284,1734372647718,-647.24,0.00024999,4]
[345591286,1734372647728,-647.24,0.00024999,4]
[345591288,1734372647737,-647.24,0.00024999,4]
[345591290,1734372647748,-647.24,0.00024999,4]
[345591292,1734372647757,-647.24,0.00024999,4]
[345591294,1734372647766,-647.24,0.00024999,4]
[345591296,1734372647776,-647.24,0.00024999,4]
[345591298,1734372647785,-647.24,0.00024999,4]
[345591300,1734372647794,-647.24,0.00024999,4]
[345591301,1734372647803,-647.24,0.00024999,4]
[345591303,1734372647812,-647.27,0.00024999,4]
[345591305,1734372647821,-500.0,0.00024999,4]
[345591307,1734372647831,-500.0,0.00024999,4]
[345591309,1734372647840,-500.0,0.00024999,4]
[345591311,1734372647849,-500.0,0.00024999,4]
[345591313,1734372647859,-407.06,0.00024999,4]
[345591315,1734372647868,-20000.0,0.00025,2]
[345591317,1734372647878,-3870689.66806057,0.00025,4]
[345591319,1734372647888,-848.74182706,0.00025,2]
[345591321,1734372647898,-66260.79146995,0.00025,2]
[345591323,1734372647908,-153.0,0.00025,2]
[345591325,1734372647917,-153.0,0.00025,2]
[345591327,1734372647927,-153.0,0.00025,2]
[345591328,1734372647936,-153.0,0.00025,2]
[345591329,1734372647945,-153.0,0.00025,2]
[345591330,1734372647955,-153.0,0.00025,2]
[345591331,1734372647964,-153.0,0.00025,2]
[345591332,1734372647974,-153.0,0.00025,2]
[345591333,1734372647983,-153.0,0.00025,2]
[345591334,1734372647992,-250.27,0.00025,2]
[345591335,1734372648001,-153.0,0.00025,2]
[345591336,1734372648010,-250.0,0.00025,2]
[345591337,1734372648020,-153.0,0.00025,2]
[345591338,1734372648029,-153.0,0.00025,2]
[345591339,1734372648039,-16356812.21318044,0.00025,2]
[345591340,1734372648048,-3191.82637932,0.00025,60]
[345591341,1734372648058,-6684.32,0.00025,7]
[345591342,1734372648067,-1095.53418258,0.00025,7]
[345591343,1734372648076,-500.0,0.00025,2]
[345591344,1734372648086,-217.0,0.00025,2]
[345591345,1734372648095,-8797.44906117,0.00025,2]
[345591346,1734372648105,-192439.27867633,0.00025,2]
[345591347,1734372648277,-2112.23884391,0.00025,2]
[345591348,1734372648289,-1212.45000005,0.00025,2]
[345591349,1734372648305,-274.176,0.00025,2]
[345591350,1734372648316,-541.18589767,0.00025,2]
[345591351,1734372648328,-1827.4623212,0.00025,2]
[345591352,1734372648399,-415.37259518,0.000249,2]
[345591353,1734372648410,-593.06240481,0.00025,2]
[345591354,1734372648422,-373.36000012,0.00025,2]
[345591355,1734372648433,-1603.394812,0.00025,2]
[345591356,1734372648474,-500.0,0.00024657,4]
[345591357,1734372648484,-403.02667615,0.00025,2]
[345591358,1734372648495,-2024.5911,0.00025,2]
[345591359,1734372648513,-731354.38674995,0.00025,2]
[345591360,1734372648524,-2191.6,0.00025,2]
[345591361,1734372648539,-11091.1971999,0.00025,2]
[345591362,1734372648551,-5014.505988,0.00025,2]
[345591363,1734372648597,-500.0,0.00024657,4]
[345591364,1734372648608,-500.0,0.00024657,4]
[345591365,1734372648618,-500.0,0.00024899,4]
[345591366,1734372648629,-12400.20878234,0.00025,2]
[345591367,1734372648641,-20350.83543413,0.00025,2]
[345591369,1734372913802,450.0,0.00013,2]
[345591370,1734372914890,500.0,0.00015,2]
[345591371,1734373099923,176.22,0.00013699,2]
[345591373,1734373506662,159.17,0.00010137,2]
[345591374,1734373508377,9840.83,0.0001,2]
[345591375,1734373508409,10000.0,0.0001,2]
[345591376,1734373508435,10000.0,0.0001,2]
[345591377,1734373508461,10000.0,0.0001,2]
[345591378,1734373508484,10000.0,0.0001,2]
[345591379,1734373508508,10000.0,0.0001,2]
[345591380,1734373508533,10000.0,0.0001,2]
[345591381,1734373508556,10000.0,0.0001,2]
[345591382,1734373508583,14198183.35381536,0.0001,2]
[345591387,1734373608125,-1848.10776393,0.00015888,2]
[345591388,1734373657410,-10000.0,0.000157,2]
[345591389,1734373661529,-10000.0,0.000157,2]
[345591391,1734373666823,-10000.0,0.000157,2]
[345591392,1734373672849,-10000.0,0.000157,2]
[345591393,1734373677378,10000.0,0.0001,2]
[345591394,1734373677400,10000.0,0.0001,2]
[345591395,1734373677422,10000.0,0.0001,2]
[345591396,1734373677447,10000.0,0.0001,2]
[345591397,1734373677469,10000.0,0.0001,2]
[345591398,1734373677490,2930.95609193,0.0001,2]
[345591399,1734373678193,7069.04390807,0.0001,2]
[345591400,1734373678214,10000.0,0.0001,2]
[345591401,1734373678234,5550.72097032,0.0001,2]
[345591402,1734373678377,-10000.0,0.000157,2]
[345591403,1734373683643,-300.0,0.00015699,2]
[345591404,1734373683671,-9700.0,0.000157,2]
[345591405,1734373689400,-10000.0,0.000157,2]
[345591407,1734373717734,2608.3972317,0.0001,2]
[345591408,1734373720317,1840.88179798,0.0001,2]
[345591410,1734373720541,6179.48948628,0.0001,2]
[345591411,1734373740292,-2264.30257765,0.000157,2]
[345591412,1734373740315,-451.47447123,0.00015888,2]
[345591413,1734373740340,-1844.389,0.00016571,2]
[345591414,1734373740364,-166.83,0.00016655,2]
[345591415,1734373740386,-208.63638111,0.000169,2]
[345591416,1734373740408,-1577.88853437,0.000169,2]
[345591417,1734373740430,-550.0,0.00016999,2]
[345591418,1734373740453,-550.0,0.00017,2]
[345591419,1734373740475,-2386.47903564,0.00017,2]
[345591420,1734373745631,-300.0,0.00016999,2]
[345591421,1734373745654,-9700.0,0.00017,2]
[345591422,1734373753725,-10000.0,0.00017,2]
[345591423,1734373760095,-612.5576632,0.00017,2]
[345591424,1734373762710,-10000.0,0.00017,2]
[345591425,1734373767833,-10000.0,0.00017,2]
[345591426,1734373772844,-10000.0,0.00017,2]
[345591427,1734373778166,-2399.53194291,0.00017,2]
[345591428,1734373787209,-10000.0,0.000178,2]
[345591436,1734373791721,-10000.0,0.000178,2]
[345591437,1734373796718,-10000.0,0.000178,2]
[345591438,1734373800546,-10000.0,0.000178,2]
[345591439,1734373807172,-10000.0,0.000178,2]
[345591440,1734373809161,-6519.43858259,0.000178,2]
[345591443,1734373818001,-186.09416193,0.00017915,2]
[345591444,1734373818024,-1033.00822071,0.00018014,2]
[345591445,1734373818046,-223.67,0.00018366,2]
[345591446,1734373818071,-3740.74,0.00018596,2]
[345591447,1734373818093,-2562.18,0.00018701,2]
[345591448,1734373818114,-2254.30761736,0.00018802,2]
[345591449,1734373827487,-3323.53238264,0.00018802,2]
[345591450,1734373827517,-6676.46761736,0.000189,2]
[345591455,1734373832050,-5470.68977974,0.000189,2]
[345591456,1734373832063,-1216.58487422,0.000189,2]
[345591457,1734373832080,-12126.89529227,0.000189,2]
[345591458,1734373832089,-1056.0,0.00018963,2]
[345591459,1734373832099,-600.0,0.00019,2]
[345591460,1734373832109,-53322.06534548,0.00019,2]
[345591461,1734373832120,-41501.45707637,0.00019,2]
[345591463,1734373832130,-500.0,0.00019009,2]
[345591465,1734373832142,-614.84127204,0.00019009,2]
[345591466,1734373832151,-295.07715968,0.00019009,2]
[345591467,1734373832165,-500.0,0.00019009,2]
[345591468,1734373832174,-500.0,0.00019009,2]
[345591469,1734373832185,-500.0,0.00019009,2]
[345591470,1734373832196,-253.86271906,0.00019009,2]
[345591471,1734373832206,-16193.16739042,0.0001901,2]
[345591472,1734373832216,-2546.07954211,0.0001911,2]
[345591473,1734373832226,-1707.13,0.00019129,2]
[345591474,1734373832235,-2282.8,0.00019163,2]
[345591475,1734373832245,-923.58,0.00019297,2]
[345591476,1734373832255,-2953.33117815,0.00019308,2]
[345591477,1734373832264,-1624.01518416,0.00019381,2]
[345591478,1734373832274,-509.55,0.00019446,2]
[345591479,1734373832283,-39925.62825394,0.0001961,2]
[345591480,1734373832292,-157.9,0.00019746,30]
[345591481,1734373832302,-188.99919927,0.000199,2]
[345591482,1734373832311,-1056.0,0.00019961,2]
[345591483,1734373832321,-514.0,0.0001997,2]
[345591484,1734373832331,-811.13,0.0001997,2]
[345591485,1734373832340,-6626.72864818,0.0001998,2]
[345591486,1734373832349,-75599.94764329,0.0001998,2]
[345591487,1734373832361,-1188.23373538,0.0001998,2]
[345591488,1734373832371,-811.13,0.0001999,2]
[345591489,1734373832381,-811.13,0.0001999,2]
[345591490,1734373832390,-811.13,0.0001999,2]
[345591491,1734373832399,-811.13,0.0001999,2]
[345591492,1734373832410,-31736.97126245,0.0002,2]
[345591493,1734373832419,-279876.64812873,0.0002,2]
[345591494,1734373832431,-2094.7,0.0002,2]
[345591495,1734373832453,-81265.61978661,0.0002,2]
[345591496,1734373832464,-3950.0,0.0002,2]
[345591497,1734373832474,-1235.27387555,0.0002,2]
[345591498,1734373832484,-2050.16269069,0.0002,2]
[345591499,1734373832495,-811.23986249,0.0002,2]
[345591500,1734373832507,-151.0,0.00020295,2]
[345591501,1734373832520,-509.55,0.00020418,2]
[345591502,1734373832530,-537.21,0.00020498,2]
[345591503,1734373832539,-180.32,0.00020508,2]
[345591504,1734373832551,-650.0,0.00021,2]
[345591505,1734373832561,-10000.0,0.00021,2]
[345591506,1734373832571,-600.000001,0.00021,2]
[345591507,1734373832580,-2000.0,0.00021009,120]
[345591508,1734373832591,-1056.0,0.00021011,2]
[345591509,1734373832601,-744.21,0.00021011,2]
[345591510,1734373832611,-150.0,0.00021032,2]
[345591511,1734373832620,-250.0,0.00021126,2]
[345591512,1734373832629,-500.0,0.00021164,2]
[345591513,1734373832639,-500.0,0.00021164,2]
[345591514,1734373832649,-467.61205096,0.00021164,2]
[345591515,1734373832659,-509.55,0.0002139,2]
[345591516,1734373832669,-2282.8,0.00021427,2]
[345591517,1734373832679,-1158.15,0.00021442,2]
[345591518,1734373832689,-500.0,0.0002145,2]
[345591519,1734373832699,-799.72,0.00021522,2]
[345591520,1734373832709,-250.0,0.00021586,2]
[345591521,1734373832718,-2541.08,0.0002162,2]
[345591522,1734373832728,-2751.0,0.00021694,2]
[345591523,1734373832738,-677.68,0.00021734,2]
[345591524,1734373832748,-755.3,0.00021811,2]
[345591525,1734373832757,-1624.01518415,0.00021888,2]
[345591526,1734373832767,-254639.89388754,0.0002189,2]
[345591527,1734373832777,-157.71978288,0.000219,2]
[345591528,1734373832786,-157.71978288,0.000219,2]
[345591529,1734373832795,-23900.0,0.00021988,2]
[345591530,1734373832804,-5078.03566463,0.00022,3]
[345591531,1734373832814,-177.0,0.00022,2]
[345591532,1734373832823,-1000.0,0.00022006,2]
[345591533,1734373832833,-150.0,0.00022014,2]
[345591534,1734373832843,-4544.97,0.00022095,2]
[345591535,1734373832852,-1056.0,0.00022117,2]
[345591536,1734373832866,-3930.41,0.0002215,2]
[345591537,1734373832875,-159.67,0.00022189,2]
[345591538,1734373832885,-15571.05037436,0.000222,2]
[345591539,1734373832898,-1998.91496,0.000222,2]
[345591540,1734373832911,-858.56,0.000222,2]
[345591541,1734373832923,-35957.03783739,0.000222,2]
[345591542,1734373832933,-1158.15,0.00022236,2]
[345591543,1734373832945,-738.91,0.0002226,2]
[345591544,1734373832955,-165.46,0.00022278,2]
[345591545,1734373832965,-4097.55168817,0.00022288,2]
[345591546,1734373832977,-3549.76831183,0.00022288,2]
[345591547,1734373832988,-760.47568817,0.00022318,2]
[345591548,1734373832999,-39.24431183,0.00022318,2]
[345591549,1734373833009,-314.75567317,0.00022363,2]
[345591550,1734373833021,-194.79432683,0.00022363,2]
[345591551,1734373833031,-118.58570777,0.00022447,2]
[345591552,1734373833043,-131.41429223,0.00022447,2]
[345591553,1734373833054,-150.0,0.00022488,4]
[345591554,1734373833064,-24097.7531899,0.00022499,2]
[345591555,1734373833074,-20000.0,0.0002262,2]
[345591556,1734373833084,-96583.55,0.0002262,2]
[345591557,1734373833094,-586.63,0.00022634,2]
[345591558,1734373833105,-157.71978288,0.00022833,2]
[345591559,1734373833115,-500.0,0.00022849,2]
[345591560,1734373833125,-786.69,0.00022911,2]
[345591561,1734373833136,-200.0,0.00022928,2]
[345591562,1734373833146,-1805.17,0.00022934,2]
[345591563,1734373833157,-1805.17,0.0002294,2]
[345591564,1734373833167,-1805.17,0.00022947,2]
[345591565,1734373833177,-1805.17,0.00022953,2]
[345591566,1734373833190,-1805.17,0.00022959,2]
[345591567,1734373833202,-1805.17,0.00022965,2]
[345591568,1734373833213,-1805.17,0.00022971,2]
[345591569,1734373833223,-1805.17,0.00022977,2]
[345591570,1734373833233,-1805.17,0.00022983,2]
[345591571,1734373833244,-1805.17,0.00022989,2]
[345591572,1734373833253,-1805.17,0.00022995,2]
[345591573,1734373833495,-453.46426398,0.00023,2]
[345591574,1734373833514,-1805.17,0.00023001,2]
[345591575,1734373833525,-1805.17,0.00023007,2]
[345591576,1734373833535,-1805.17,0.00023013,2]
[345591577,1734373833547,-1805.17,0.00023019,2]
[345591578,1734373833558,-1805.17,0.00023025,2]
[345591579,1734373833568,-1158.15,0.00023029,2]
[345591580,1734373833578,-1805.17,0.00023031,2]
[345591581,1734373833589,-1805.17,0.00023037,2]
[345591582,1734373833599,-1805.17,0.00023043,2]
[345591583,1734373833609,-1805.17,0.00023049,2]
[345591584,1734373833618,-572.74244934,0.0002305,2]
[345591585,1734373833628,-500.0,0.0002305,2]
[345591586,1734373833637,-259.75700077,0.0002305,2]
[345591587,1734373833647,-537.21,0.0002306,2]
[345591588,1734373833656,-799.72,0.00023114,2]
[345591589,1734373833666,-165.46,0.00023197,2]
[345591590,1734373833675,-200.0,0.00023218,2]
[345591591,1734373833685,-1056.0,0.00023223,2]
[345591592,1734373833697,-509.55,0.00023335,2]
[345591593,1734373833707,-500.0,0.00023356,2]
[345591594,1734373833716,-500.0,0.00023356,2]
[345591595,1734373833726,-150.0,0.00023384,2]
[345591596,1734373833736,-872.0,0.00023397,2]